Cogmind - Beta 12 X1 @@@ ROGUE MODE // 2022.07.08 @ 22:14:17 Player: Cyurio Result: Destroyed by G-50 Soldier with Heavy Laser Performance ------------- Evolutions (2) 1000 Regions Visited (6) 1200 Robots Destroyed (51) 255 Value Destroyed (1678) 1678 Prototype IDs (27) 540 Alien Tech Used (0) 0 Bonus (283) 283 TOTAL SCORE: 4956 Bonus ------- High Alert Combat Kills 73 Follower Combat Kills 27 Aligned with FarCom 300 Friendly Fire -117 Cogmind --------- Core Integrity 0/550 Matter 173/300 Energy 80/100 System Corruption 9% Temperature Cool (9) Movement Walking (190) Ox1 Location -8/Storage Parts ------- > --- POWER (1) -------- (None) > --- PROPULSION (3) --- Carbon-fiber Leg > --- UTILITY (4) ------ Large Storage Unit Signal Interpreter > --- WEAPON (3) ------- Maul > --- INVENTORY (15) --- Light Nuclear Core Compact Wheel Improved Flight Unit Improved VTOL Module Improved VTOL Module Improved VTOL Module High-capacity Storage Unit Trap Scanner Improved Terrain Scanner Melee Analysis Suite Actuator Array ECM Suite Trap Reconfigurator Peak State ------------ > --- POWER ------------ Light Nuclear Core > --- PROPULSION ------- Carbon-fiber Leg Carbon-fiber Leg Titanium Leg > --- UTILITY ---------- Large Storage Unit Experimental Sensor Array Signal Interpreter Improved Targeting Computer > --- WEAPON ----------- Heavy Assault Rifle Gauss Rifle Maul > --- INVENTORY -------- Improved Aluminum Leg Compact Wheel High-capacity Storage Unit Trap Scanner Improved Terrain Scanner Melee Analysis Suite Actuator Array ECM Suite Light Armor Plating Trap Reconfigurator Light Assault Rifle High-powered Shotgun High-powered Shotgun High-powered Shotgun High-powered Shotgun [Rating: 37] Favorites ----------- Power Light Nuclear Core Engine Light Ion Engine Power Core Light Nuclear Core Propulsion Carbon-fiber Leg Leg Carbon-fiber Leg Hover Unit Aerolev Unit Utility Signal Interpreter Device Improved Terrain Scanner Storage Large Storage Unit Processor Signal Interpreter Protection Light Armor Plating Weapon Heavy Assault Rifle Ballistic Gun Heavy Assault Rifle Impact Weapon Maul Build | -11 -10 -10 -10 -9 -8 -8 ------- Run | Scr Mat Min Exi Min Mat Sto Slots Evolved 4 | . . . . . 4 . Power . | . . . . . . . Propulsion 1 | . . . . . 1 . Utility 2 | . . . . . 2 . Weapon 1 | . . . . . 1 . Parts Attached 72 | . 12 . . . 16 44 Power 4 | . . . . . 2 2 Engine 2 | . . . . . 1 1 Core 2 | . . . . . 1 1 Reactor . | . . . . . . . Propulsion 15 | . 4 . . . 3 8 Treads . | . . . . . . . Leg 14 | . 4 . . . 3 7 Wheel . | . . . . . . . Hover 1 | . . . . . . 1 Flight . | . . . . . . . Utility 19 | . 2 . . . 6 11 Device 11 | . . . . . 3 8 Storage 2 | . 1 . . . 1 . Processor 4 | . 1 . . . 2 1 Hackware . | . . . . . . . Protection 2 | . . . . . . 2 Artifact . | . . . . . . . Weapon 34 | . 6 . . . 5 23 Energy Gun . | . . . . . . . Energy Cannon . | . . . . . . . Ballistic Gun 27 | . 6 . . . 3 18 Ballistic Cannon . | . . . . . . . Launcher . | . . . . . . . Special Weapon . | . . . . . . . Impact Weapon 7 | . . . . . 2 5 Slashing Weapon . | . . . . . . . Piercing Weapon . | . . . . . . . Special Melee Weapon . | . . . . . . . Unidentified Prototypes 4 | . . . . . 1 3 Parts Lost 23 | . 1 . . . 3 19 Power 3 | . . . . . 1 2 Propulsion 5 | . . . . . 1 4 Utility 5 | . . . . . . 5 Weapon 10 | . 1 . . . 1 8 Highest Loss Streak 12 | . 1 . . . 2 12 To Critical Strikes 2 | . 1 . . . . 1 Average Slot Usage (%) 97 | . 97 100 100 100 97 98 Engine 4 | . 14 14 14 14 3 1 Core 5 | . . . . . 5 7 Leg 27 | . 27 28 28 28 26 26 Device 5 | . . . . . 9 6 Storage 10 | . 14 14 14 14 9 9 Processor 16 | . 12 14 14 14 18 18 Ballistic Gun 24 | . 27 28 28 28 20 23 Impact Weapon 2 | . . . . . 4 3 Naked Turns . | . . . . . . . Heaviest Build 40 | 12 15 15 15 15 36 40 Greatest Support 47 | 20 26 26 26 26 47 47 Greatest Overweight (x) 2 | . 1 . . . . 2 Average Overweight (x) . | . . . . . . . Largest Inventory Capacity 15 | . 10 10 10 10 15 15 Average Capacity 12 | . 8 10 10 10 11 15 Most Carried 15 | . 10 10 10 10 15 15 Average Carried 12 | . 7 10 9 9 9 14 Final Capacity 15 | 8 10 10 10 10 15 15 Final Carried 15 | 6 10 10 10 10 15 13 Class Distribution -------------------- 31% | Scavenger-Skirmisher 27% | Mutant 17% | Assassin 12% | Skirmisher 10% | Scavenger-Assassin Dominant Class ---------------- Mutant | -10/Materials Mutant | -10/Mines Mutant | -10/Exiles Mutant | -9/Mines Assassin | -8/Materials Scavenger-Skirmisher | -8/Storage Resources | -11 -10 -10 -10 -9 -8 -8 ----------- Run | Scr Mat Min Exi Min Mat Sto Matter Collected 1754 | 200 196 . . . 319 1039 Remotely . | . . . . . . . Salvage Created 2103 | . 360 . . . 437 1306 Parts 105 | . 25 . . . 24 56 Haulers Intercepted 6 | . 2 . . . 2 2 Recyclers Shooed 6 | . 4 . . . 2 . Parts Field Recycled . | . . . . . . . Retrieved Matter . | . . . . . . . Parts Self-Destructed . | . . . . . . . Prevented . | . . . . . . . Kills | -11 -10 -10 -10 -9 -8 -8 ------- Run | Scr Mat Min Exi Min Mat Sto Combat Hostiles Destroyed 40 | . 9 . . . 6 25 Guns 40 | . 9 . . . 6 25 Classes Destroyed 11 | . 5 . . . 3 3 Worker 1 | . . . . . . 1 Builder 1 | . 1 . . . . . Hauler 6 | . 2 . . . 2 2 Operator 1 | . 1 . . . . . Watcher 1 | . . . . . 1 . Swarmer 6 | . 6 . . . . . Grunt 24 | . 3 . . . 2 19 Brawler 1 | . . . . . . 1 Protector 1 | . . . . . . 1 Sentry 7 | . . . . . 3 4 Hunter 1 | . . . . . 1 . Thug 1 | . . . . . . 1 Best Kill Streak 7 | . 7 . . . 2 5 Combat Bots Only 5 | . 3 . . . 2 5 Max Kills in Single Turn 2 | . 2 . . . 1 2 Gunslinging . | . . . . . . . Exploded . | . . . . . . . Melee . | . . . . . . . Uniques/NPCs Destroyed . | . . . . . . . Combat | -11 -10 -10 -10 -9 -8 -8 -------- Run | Scr Mat Min Exi Min Mat Sto Damage Taken 3410 | . 374 . . . 625 2411 Core 619 | . 63 . . . 126 430 Absorbed by Shields . | . . . . . . . Core Remaining (%) 87 | 100 . . . 74 . . Volleys Fired 154 | . 36 . . . 34 84 Largest 3 | . 2 . . . 3 3 Hottest 76 | . 40 . . . 68 76 Shots Fired 386 | . 71 . . . 84 231 Gun 386 | . 71 . . . 84 231 Cannon . | . . . . . . . Launcher . | . . . . . . . Special . | . . . . . . . Kinetic 386 | . 71 . . . 84 231 Thermal . | . . . . . . . Explosive . | . . . . . . . Electromagnetic . | . . . . . . . Robot Hit Streak 38 | . 8 . . . 23 38 Robot Miss Streak 4 | . 4 . . . 1 4 Penetration Max 1 | . . . . . 1 . Secondary Targets 3 | . . . . . . 3 Max Gunslinging Chain 1 | . . . . . . 1 Shots Hit Robots 291 | . 47 . . . 71 173 Core Hits 126 | . 26 . . . 23 77 Critical Kills 3 | . . . . . . 3 Critical Parts Destroyed . | . . . . . . . Critical Strikes 3 | . . . . . . 3 Destroy 3 | . . . . . . 3 Melee Attacks 32 | . . . . . 9 23 Impact 32 | . . . . . 9 23 Slashing . | . . . . . . . Piercing . | . . . . . . . Sneak Attacks 1 | . . . . . . 1 Combat Hostiles . | . . . . . . . Follow-up Attacks . | . . . . . . . Damage Inflicted 4006 | . 411 . . . 711 2884 Guns 3907 | . 411 . . . 667 2829 Cannons . | . . . . . . . Explosions . | . . . . . . . Melee 82 | . . . . . 28 54 Ramming 17 | . . . . . 16 1 Kinetic 3907 | . 411 . . . 667 2829 Thermal . | . . . . . . . Explosive . | . . . . . . . Electromagnetic . | . . . . . . . Impact 82 | . . . . . 28 54 Slashing . | . . . . . . . Piercing . | . . . . . . . Highest Corruption 9 | . . . . . . 9 Average Corruption 8 | . . . . . . 8 Corruption Purged . | . . . . . . . Corruption Blocked . | . . . . . . . Effects 25 | . . . . . . 25 Message Errors 4 | . . . . . . 4 Matter Fused 5 | . . . . . . 5 Heat Flow Errors 4 | . . . . . . 4 Energy Discharges 6 | . . . . . . 6 Data Loss (minor) 2 | . . . . . . 2 Data Loss (major) 1 | . . . . . . 1 Misfires 2 | . . . . . . 2 Weapon Failures 1 | . . . . . . 1 Overload Shots . | . . . . . . . Overflow Damage 38 | . . . . . 6 32 Projectiles . | . . . . . . . Explosions . | . . . . . . . Melee 38 | . . . . . 6 32 Knockbacks 1 | . . . . . 1 . Impact 1 | . . . . . 1 . Kinetic . | . . . . . . . Secondary . | . . . . . . . Self-Inflicted Damage . | . . . . . . . Shots . | . . . . . . . Rammed . | . . . . . . . Targets Rammed 6 | . 3 . . . 2 1 Kicked 6 | . 3 . . . 2 1 Crushed . | . . . . . . . Highest Temperature 492 | . 12 . . . 74 492 Average Temperature 87 | . 7 . . . 23 107 Received Heat Transfer 1455 | . 105 . . . 162 1188 Effects 2 | . . . . . . 2 Shutdowns 1 | . . . . . . 1 Energy Bleed 1 | . . . . . . 1 Siege Activations . | . . . . . . . Robots Corrupted . | . . . . . . . Combat Hostiles . | . . . . . . . Parts Fried 3 | . . . . . 3 . Impact Corruptions 2 | . . . . . 1 1 Robots Melted . | . . . . . . . Combat Hostiles . | . . . . . . . Parts Melted 1 | . . . . . . 1 Heat Transferred . | . . . . . . . Parts Sabotaged . | . . . . . . . Parts Stolen . | . . . . . . . Parts Stripped . | . . . . . . . Power Chain Reactions . | . . . . . . . Missiles Intercepted . | . . . . . . . Alert | -11 -10 -10 -10 -9 -8 -8 ------- Run | Scr Mat Min Exi Min Mat Sto Peak Influence 481 | . 206 . . . 129 481 Initial 27 | . . . . . . 27 Average 81 | . 70 . . . 54 96 Maximum Alert Level 2 | . 1 . . . . 2 Low Security (%) 86 | . 91 100 . 100 100 80 Level 1 10 | . 8 . . . . 15 Level 2 2 | . . . . . . 3 Level 3 . | . . . . . . . Level 4 . | . . . . . . . Level 5 . | . . . . . . . High Security . | . . . . . . . Max Security . | . . . . . . . Squads Dispatched 12 | . 1 . . . 1 10 Investigation 1 | . . . . . . 1 Extermination . | . . . . . . . Reinforcement 2 | . 1 . . . 1 . Assault 2 | . . . . . . 2 Garrison 7 | . . . . . . 7 Intercept . | . . . . . . . Searches Triggered . | . . . . . . . Construction Impeded . | . . . . . . . Haulers Reinforced . | . . . . . . . Active Scanning Responses . | . . . . . . . Cargo Convoy Interrupts . | . . . . . . . Stealth | -11 -10 -10 -10 -9 -8 -8 --------- Run | Scr Mat Min Exi Min Mat Sto Distress Signals 7 | . 1 . . . 1 5 Communications Jammed . | . . . . . . . Distress Signals . | . . . . . . . Times Spotted 65 | . 18 . . . 12 35 Peak Tracking Total 10 | . 5 . . . 3 10 Tactical Retreats 7 | . 1 . . . . 6 Traps | -11 -10 -10 -10 -9 -8 -8 ------- Run | Scr Mat Min Exi Min Mat Sto Traps Triggered 7 | . 3 . . . 1 3 Indirectly . | . . . . . . . Trap Hack Attempts . | . . . . . . . Triggered . | . . . . . . . Disarmed . | . . . . . . . Reprogrammed . | . . . . . . . Reused 3 | . . . . . 2 1 Traps Reconfigurated 4 | . . . . . 2 2 Traps Extracted . | . . . . . . . Installed . | . . . . . . . Triggered 3 | . . . . . 2 1 Machines | -11 -10 -10 -10 -9 -8 -8 ---------- Run | Scr Mat Min Exi Min Mat Sto Machines Disabled 2 | . . . . . . 2 Max in Single Turn 1 | . . . . . . 1 Garrison Access 1 | . . . . . . 1 Machines Sabotaged . | . . . . . . . Garrisons Compromised . | . . . . . . . Overloaded Fab Kills . | . . . . . . . Hacking | -11 -10 -10 -10 -9 -8 -8 --------- Run | Scr Mat Min Exi Min Mat Sto Machines Accessed 15 | . 5 . 2 . 2 6 Terminals 12 | . 5 . . . 2 5 Fabricators . | . . . . . . . Repair Stations . | . . . . . . . Recycling Units . | . . . . . . . Scanalyzers . | . . . . . . . Garrison Access 1 | . . . . . . 1 Total Hacks 29 | . 13 . 2 . 3 11 Successful 18 | . 8 . 2 . 2 6 Failed 11 | . 5 . . . 1 5 Catastrophic . | . . . . . . . Database Lockouts . | . . . . . . . Manual 15 | . 12 . 1 . 2 . Terminals 25 | . 13 . . . 3 9 Fabricators . | . . . . . . . Repair Stations . | . . . . . . . Recycling Units . | . . . . . . . Scanalyzers . | . . . . . . . Garrison Access 2 | . . . . . . 2 Terminal Hacks 10 | . 3 . 2 . . 5 Record 3 | . 1 . 1 . . 1 Open Door 3 | . . . . . . 3 Alert Level 2 | . 1 . . . . 1 Unreport Threat 1 | . 1 . . . . . EX-Prototype ID Bank 1 | . . . 1 . . . Fabricator Hacks . | . . . . . . . Repair Station Hacks . | . . . . . . . Recycling Unit Hacks . | . . . . . . . Scanalyzer . | . . . . . . . Garrison Access Hacks 1 | . . . . . . 1 Seal Access 1 | . . . . . . 1 Unauthorized Hacks 7 | . 5 . . . 2 . Terminals 7 | . 5 . . . 2 . Botnet 7 | . 5 . . . 2 . Fabricators . | . . . . . . . Repair Stations . | . . . . . . . Recycling Units . | . . . . . . . Scanalyzers . | . . . . . . . Garrison Access . | . . . . . . . Data Cores Recovered . | . . . . . . . Used . | . . . . . . . Hacking Detections 8 | . 3 . . . 2 3 Full Trace Events 1 | . . . . . . 1 Feedback Events . | . . . . . . . Feedback Blocked . | . . . . . . . Robot Schematics Acquired . | . . . . . . . Robots Built . | . . . . . . . Authchips . | . . . . . . . Time . | . . . . . . . Total Robot Build Rating . | . . . . . . . Part Schematics Acquired . | . . . . . . . Parts Built . | . . . . . . . Authchips . | . . . . . . . Time . | . . . . . . . Total Part Build Rating . | . . . . . . . Parts Repaired . | . . . . . . . Time . | . . . . . . . Parts Recycled . | . . . . . . . Recycled Matter . | . . . . . . . Retrieved Matter . | . . . . . . . Retrieved Components . | . . . . . . . Parts Scanalyzed . | . . . . . . . Part Schematics Acquired . | . . . . . . . Parts Damaged . | . . . . . . . Bothacking | -11 -10 -10 -10 -9 -8 -8 ------------ Run | Scr Mat Min Exi Min Mat Sto Used RIF Installer . | . . . . . . . Robots Hacked . | . . . . . . . Non-combat . | . . . . . . . Combat . | . . . . . . . Robot Hacks Applied . | . . . . . . . Relay Couplers Released . | . . . . . . . Fabnet Peak Effective % . | . . . . . . . Robots Rewired . | . . . . . . . Allies Hacked . | . . . . . . . Hacks Repelled . | . . . . . . . Allies | -11 -10 -10 -10 -9 -8 -8 -------- Run | Scr Mat Min Exi Min Mat Sto Total Allies 2 | . . . . . . 2 Largest Group 2 | . . . . . . 2 Highest-Rated Group 62 | . . . . . . 62 Highest-Rated Ally 31 | . . . . . . 31 Total Orders . | . . . . . . . Ally Attacks 11 | . . . . . . 11 Total Damage 210 | . . . . . . 210 Kills 1 | . . . . . . 1 Allies Corrupted . | . . . . . . . Allies Melted . | . . . . . . . Intel | -11 -10 -10 -10 -9 -8 -8 ------- Run | Scr Mat Min Exi Min Mat Sto Robot Analysis Total . | . . . . . . . Derelict Logs Recovered . | . . . . . . . Drone Launches . | . . . . . . . Drone Recoveries . | . . . . . . . Exploration | -11 -10 -10 -10 -9 -8 -8 ------------- Run | Scr Mat Min Exi Min Mat Sto Turns Passed 5104 | . 872 16 308 61 932 2915 Spaces Moved 2066 | 1 603 14 256 50 500 642 Core . | . . . . . . . Treads . | . . . . . . . Legs 2066 | 1 603 14 256 50 500 642 Wheels . | . . . . . . . Hover . | . . . . . . . Flight . | . . . . . . . Fastest Speed 120 | 120 120 120 120 120 120 123 Average Speed 121 | 120 120 120 120 120 121 123 Slowest Speed 260 | 120 190 120 120 120 123 260 Overloaded Moves . | . . . . . . . Propulsion Burnouts . | . . . . . . . Robots Hopped . | . . . . . . . Cave-ins Triggered . | . . . . . . . Exploration Rate (%) 38 | 2 96 6 61 15 36 51 Regions Visited 6 Branch Regions 4 Pre-discovered Areas 1 | . . . 1 . . . Known Exits Taken 5 | . 1 1 1 1 1 . Unknown Exits Taken 1 | 1 . . . . . . Scrap Searched . | . . . . . . . Spaces Dug 25 | . . . . . 8 17 Terrain Destroyed 27 | . . . . . 9 18 Melee 25 | . . . . . 8 17 Projectile 1 | . . . . . . 1 AOE . | . . . . . . . Terrain Rammed . | . . . . . . . Walls Destroyed . | . . . . . . . Machines Disabled . | . . . . . . . Actions | -11 -10 -10 -10 -9 -8 -8 --------- Run | Scr Mat Min Exi Min Mat Sto Total 4289 | . 692 13 257 51 743 2533 Wait 1905 | . 22 . . . 169 1714 Move 2060 | . 602 13 255 49 499 642 Hop . | . . . . . . . Pick Up 31 | . 8 . 1 1 10 11 Fast Attach 20 | . 6 . . . 3 11 Attach 13 | . . . . . 5 8 Detach 2 | . . . . . . 2 Swap 39 | . 6 . . . 8 25 Drop 27 | . 9 . 1 1 4 12 Fire 154 | . 36 . . . 34 84 Melee 32 | . . . . . 9 23 Ram . | . . . . . . . Kick 6 | . 3 . . . 2 1 Crush . | . . . . . . . Escape Stasis . | . . . . . . . Rewire . | . . . . . . . Trap . | . . . . . . . Miscellaneous . | . . . . . . . Route ------- -11/Scrapyard -10/Materials (discovered 5 exits: *Mat x3 / *Min x2) -10/Mines -10/Exiles -9/Mines -8/Materials -8/Storage (discovered 1 exit: [*Fac]) History --------- Turn | Location | Event 1 | -11/Scrapyard | Discovered new exit (range 0) 1 | -11/Scrapyard | Entered Materials 231 | -10/Materials | Discovered new exit (range 10) 304 | -10/Materials | Build established: Mutant 386 | -10/Materials | Discovered new exit (range 9) 401 | -10/Materials | Identified exit to Materials 488 | -10/Materials | Discovered exit to Materials (range 16) 617 | -10/Materials | Identified exit to Mines 649 | -10/Materials | Discovered exit to Mines (range 9) 712 | -10/Materials | Discovered exit to Materials (range 13) 873 | -10/Materials | Entered Mines 884 | -10/Mines | Deemed a non-threat by the Exiles lab entrance 884 | -10/Mines | Discovered new exit (range 5) 888 | -10/Mines | Identified exit to Exiles 889 | -10/Mines | Entered Exiles 918 | -10/Exiles | Met 8R-AWN 940 | -10/Exiles | Met EX-HEX 973 | -10/Exiles | Met EX-BIN 989 | -10/Exiles | Met EX-DEC 995 | -10/Exiles | Learned location of Zion (-7) 1033 | -10/Exiles | Aligned with FarCom system 1035 | -10/Exiles | Given EX-Vault access code 1068 | -10/Exiles | Opened EX-Vault 1078 | -10/Exiles | Found Trap Reconfigurator 1102 | -10/Exiles | Warned to stay clear of 0b10 Research branches 1184 | -10/Exiles | Discovered new exit (range 12) 1196 | -10/Exiles | Identified exit to Mines 1197 | -10/Exiles | Left Exiles lab with Trap Reconfigurator 1197 | -10/Exiles | Entered Mines 1225 | -9/Mines | Discovered new exit (range 13) 1233 | -9/Mines | Found a damaged Exp. Sensor Array with a note attached 1236 | -9/Mines | Found Prototype Device 1257 | -9/Mines | Identified exit to Materials 1258 | -9/Mines | Entered Materials 1258 | -8/Materials | Evolved 4 slots: Propulsion x1, Utility x2, Weapon x1 1258 | -8/Materials | Identified Exp. Sensor Array 2048 | -8/Materials | Discovered new exit (range 15) 2065 | -8/Materials | Identified exit to Storage 2190 | -8/Materials | Entered Storage 2289 | -8/Storage | Found Prototype Processor 2382 | -8/Storage | Garrison activated, responded to threat 2680 | -8/Storage | Build established: Scavenger-Skirmisher 4107 | -8/Storage | Build established: Assassin 4373 | -8/Storage | Lost 5 parts (1p1n1u2w) 4391 | -8/Storage | Garrison activated, responded to threat 4723 | -8/Storage | Garrison activated, responded to threat 4933 | -8/Storage | Discovered new exit (range 15) 4976 | -8/Storage | Met a pair of Derelict thieves 4995 | -8/Storage | Identified Exp. Targeting Computer 5022 | -8/Storage | Core integrity fell below 50% 5087 | -8/Storage | Core integrity fell below 20% 5105 | -8/Storage | Destroyed by G-50 Soldier with Heavy Laser Last Messages --------------- 05071_ Critical hit (Burn: +37). 05071_ K-01 Serf collects debris. 05074_ Assault Rifle destroyed. 05074_ K-01 Serf collects debris. 05076_ Acquired Carbon-fiber Leg. 05078_ K-01 Serf collects debris. 05079_ Assault Rifle destroyed. 05081_ > |CC&GQFJAF8TMH/XDOH/QVAR7,WL9WGP